{"text_format":"3","workbook":"xlsx","n_sheets":1,"sheets":["Лист1"],"not_rendered":{"defined_names":2},"read":"whole","date_system":"1900"}

{"sheet":"Лист1","index":0,"n_rows":40,"n_cols":5,"rows_kept":40,"merged":[[3,0,3,3],[4,0,4,3],[5,0,5,3],[10,3,11,3]]}
[{"$nulls":3},"Приложение"]
[]
[]
["График проведения проведения ВПР "]
[]
["(наименование муниципального образования)"]
[]
["Данные приказа о проведение ВПР в муниципальном образовании"]
[]
["Класс","Предмет","Планируемая дата проведения (ДД.ММ.ГГГГ)","Планируемая дата загрузки (ДД.ММ.ГГГГ)"]
[5,"русский язык            1 часть             ",null,null,{"$f":"IF((D11-C11)>7,\" ОШИБКА! Загрузка не позднее 7 дней после даты проведения!\",\" \")","v":" "}]
[5,"русский язык          2 часть  "]
[5,"математика",null,null,{"$f":"IF((D13-C13)>7,\" ОШИБКА! Загрузка не позднее 7 дней после даты проведения!\",\" \")","v":" "}]
[5,"окружающий мир",null,null,{"$f":"IF((D14-C14)>7,\" ОШИБКА! Загрузка не позднее 7 дней после даты проведения!\",\" \")","v":" "}]
[6,"русский язык",null,null,{"$f":"IF((D15-C15)>7,\" ОШИБКА! Загрузка не позднее 7 дней после даты проведения!\",\" \")","v":" "}]
[6,"математика",null,null,{"$f":"IF((D16-C16)>7,\" ОШИБКА! Загрузка не позднее 7 дней после даты проведения!\",\" \")","v":" "}]
[6,"биология",null,null,{"$f":"IF((D17-C17)>7,\" ОШИБКА! Загрузка не позднее 7 дней после даты проведения!\",\" \")","v":" "}]
[6,"история",null,null,{"$f":"IF((D18-C18)>7,\" ОШИБКА! Загрузка не позднее 7 дней после даты проведения!\",\" \")","v":" "}]
[7,"математика",null,null,{"$f":"IF((D19-C19)>7,\" ОШИБКА! Загрузка не позднее 7 дней после даты проведения!\",\" \")","v":" "}]
[7,"русский язык",null,null,{"$f":"IF((D20-C20)>7,\" ОШИБКА! Загрузка не позднее 7 дней после даты проведения!\",\" \")","v":" "}]
[7,"биология",null,null,{"$f":"IF((D21-C21)>7,\" ОШИБКА! Загрузка не позднее 7 дней после даты проведения!\",\" \")","v":" "}]
[7,"география",null,null,{"$f":"IF((D22-C22)>7,\" ОШИБКА! Загрузка не позднее 7 дней после даты проведения!\",\" \")","v":" "}]
[7,"обществознание",null,null,{"$f":"IF((D23-C23)>7,\" ОШИБКА! Загрузка не позднее 7 дней после даты проведения!\",\" \")","v":" "}]
[7,"история",null,null,{"$f":"IF((D24-C24)>7,\" ОШИБКА! Загрузка не позднее 7 дней после даты проведения!\",\" \")","v":" "}]
[8,"математика",null,null,{"$f":"IF((D25-C25)>7,\" ОШИБКА! Загрузка не позднее 7 дней после даты проведения!\",\" \")","v":" "}]
[8,"русский язык",null,null,{"$f":"IF((D26-C26)>7,\" ОШИБКА! Загрузка не позднее 7 дней после даты проведения!\",\" \")","v":" "}]
[8,"биология",null,null,{"$f":"IF((D27-C27)>7,\" ОШИБКА! Загрузка не позднее 7 дней после даты проведения!\",\" \")","v":" "}]
[8,"география",null,null,{"$f":"IF((D28-C28)>7,\" ОШИБКА! Загрузка не позднее 7 дней после даты проведения!\",\" \")","v":" "}]
[8,"обществознание",null,null,{"$f":"IF((D29-C29)>7,\" ОШИБКА! Загрузка не позднее 7 дней после даты проведения!\",\" \")","v":" "}]
[8,"история",null,null,{"$f":"IF((D30-C30)>7,\" ОШИБКА! Загрузка не позднее 7 дней после даты проведения!\",\" \")","v":" "}]
[8,"физика",null,null,{"$f":"IF((D31-C31)>7,\" ОШИБКА! Загрузка не позднее 7 дней после даты проведения!\",\" \")","v":" "}]
[8,"английский язык, немецкий язык, французский язык",null,null,{"$f":"IF((D32-C32)>7,\" ОШИБКА! Загрузка не позднее 7 дней после даты проведения!\",\" \")","v":" "}]
[9,"математика",null,null,{"$f":"IF((D33-C33)>7,\" ОШИБКА! Загрузка не позднее 7 дней после даты проведения!\",\" \")","v":" "}]
[9,"русский язык",null,null,{"$f":"IF((D34-C34)>7,\" ОШИБКА! Загрузка не позднее 7 дней после даты проведения!\",\" \")","v":" "}]
[9,"биология",null,null,{"$f":"IF((D35-C35)>7,\" ОШИБКА! Загрузка не позднее 7 дней после даты проведения!\",\" \")","v":" "}]
[9,"география",null,null,{"$f":"IF((D36-C36)>7,\" ОШИБКА! Загрузка не позднее 7 дней после даты проведения!\",\" \")","v":" "}]
[9,"обществознание",null,null,{"$f":"IF((D37-C37)>7,\" ОШИБКА! Загрузка не позднее 7 дней после даты проведения!\",\" \")","v":" "}]
[9,"история",null,null,{"$f":"IF((D38-C38)>7,\" ОШИБКА! Загрузка не позднее 7 дней после даты проведения!\",\" \")","v":" "}]
[9,"физика",null,null,{"$f":"IF((D39-C39)>7,\" ОШИБКА! Загрузка не позднее 7 дней после даты проведения!\",\" \")","v":" "}]
[9,"химия",null,null,{"$f":"IF((D40-C40)>7,\" ОШИБКА! Загрузка не позднее 7 дней после даты проведения!\",\" \")","v":" "}]